bitfinex-derivatives/quotes_BTCF0:USTF0_20240815
["timestamp","ask_amount","ask_price","bid_price","bid_amount"]
[1723744066579,0.3608,59382.0,59381.0,0.084189]
[1723744066773,0.08419,59380.0,59379.0,0.001]
[1723744067375,0.084193,59379.0,59376.0,0.05030929]
[1723744067684,0.084202,59372.0,59369.0,0.05030929]
[1723744067881,0.084202,59372.0,59368.0,0.05030929]
[1723744068076,0.084202,59372.0,59367.0,0.41873156]
[1723744068786,0.084202,59372.0,59367.0,0.36842227]
[1723744069288,0.693684,59372.0,59367.0,0.3608]
[1723744069483,0.673684,59372.0,59367.0,0.3608]
[1723744069876,0.084202,59372.0,59371.0,0.00125254]
[1723744070086,0.084197,59376.0,59371.0,0.00625254]
[1723744070281,0.084199,59375.0,59374.0,0.084199]
[1723744070487,0.084197,59376.0,59375.0,0.084198]
[1723744070683,0.09171997,59376.0,59374.0,0.3608]
[1723744070893,0.084198,59375.0,59374.0,0.3608]
[1723744071080,0.084198,59375.0,59371.0,0.00625254]
[1723744071081,0.084195,59378.0,59371.0,0.00625254]
[1723744071281,0.084195,59377.0,59371.0,0.00625254]
[1723744071486,0.084195,59377.0,59375.0,0.084197]
[1723744072382,0.084196,59376.0,59375.0,0.084197]
[1723744073679,0.444994,59378.0,59371.0,0.00525254]
[1723744073879,0.444994,59378.0,59371.0,0.08945554]
[1723744074183,0.0842,59374.0,59371.0,0.08445554]
[1723744074389,0.084201,59373.0,59371.0,0.08445554]
[1723744075285,0.084201,59373.0,59371.0,0.08945554]
[1723744075586,0.084191,59380.0,59371.0,0.00525254]
[1723744075775,0.084192,59379.0,59374.0,0.3608]
[1723744076181,0.084192,59379.0,59377.0,0.084194]
[1723744076489,0.00779733,59383.0,59374.0,0.3608]
[1723744076679,0.00025254,59389.0,59388.0,0.084179]
[1723744076986,0.00025254,59389.0,59388.0,0.444979]
[1723744077874,0.01425254,59389.0,59388.0,0.445979]
[1723744078078,0.01425254,59389.0,59388.0,0.51318496]
[1723744078284,0.01425254,59389.0,59388.0,0.445979]
[1723744078791,0.00025254,59389.0,59388.0,0.51418496]
[1723744079486,0.01425254,59389.0,59388.0,0.51418496]
[1723744080390,0.00025254,59389.0,59388.0,0.447979]
[1723744080585,0.00025254,59389.0,59388.0,0.532158]
[1723744080780,0.3608,59396.0,59395.0,0.084169]
[1723744081491,0.3608,59396.0,59395.0,0.13454862]
[1723744081890,0.3608,59396.0,59395.0,0.084169]
[1723744082086,0.3678,59396.0,59395.0,0.13554847]
[1723744082278,0.3678,59396.0,59395.0,0.085169]
[1723744083081,0.3748,59396.0,59395.0,0.085169]
[1723744083281,0.458968,59396.0,59395.0,0.085169]
[1723744083994,0.70178232,59396.0,59395.0,0.085169]
[1723744084294,0.70178232,59396.0,59395.0,0.001]
[1723744084599,0.70178232,59396.0,59370.0,0.2183]
[1723744084600,0.98274691,59396.0,59370.0,0.2183]
[1723744084889,0.1169419,59379.0,59373.0,0.0736]
[1723744085099,0.1169419,59378.0,59373.0,0.0736]
[1723744085401,0.1169419,59376.0,59373.0,0.0736]
[1723744085598,0.11693271,59376.0,59375.0,0.084198]
[1723744085780,0.11693692,59376.0,59375.0,0.084198]
[1723744086188,0.11693692,59377.0,59376.0,0.084196]
[1723744086590,0.11693692,59378.0,59377.0,0.084195]
[1723744086791,0.00025254,59380.0,59377.0,0.950235]
[1723744086986,0.00025254,59380.0,59379.0,0.084192]
[1723744087585,0.00025254,59380.0,59379.0,0.589432]
[1723744087780,0.00025254,59380.0,59379.0,0.084192]
[1723744088282,0.00125254,59380.0,59379.0,0.165692]
[1723744089194,0.00025254,59380.0,59379.0,0.155692]
[1723744089394,0.11693692,59385.0,59384.0,0.084185]
[1723744089588,0.11693692,59390.0,59386.0,0.084182]
[1723744089889,0.11693692,59388.0,59386.0,0.084182]
[1723744090095,0.11693692,59387.0,59386.0,0.084182]
[1723744090482,0.11695754,59387.0,59386.0,0.084182]
[1723744090885,0.13390042,59392.0,59386.0,0.084182]
[1723744090886,0.08418,59388.0,59386.0,0.084182]
[1723744091086,0.08418,59388.0,59387.0,0.084181]
[1723744091389,0.08418,59388.0,59387.0,0.1345232]
[1723744091589,0.08418,59388.0,59387.0,0.13452402]
[1723744091791,0.08418,59388.0,59387.0,0.084181]
[1723744092299,0.08418,59388.0,59387.0,0.086181]
[1723744092699,0.08418,59388.0,59387.0,0.002]
[1723744092896,1.35014,59388.0,59387.0,0.002]
[1723744093198,0.98934,59388.0,59387.0,0.002]
[1723744093496,0.58934,59388.0,59387.0,0.002]
[1723744093794,0.08418,59388.0,59387.0,0.002]
[1723744094096,0.08718,59388.0,59387.0,0.002]
[1723744094399,0.08718,59388.0,59382.0,0.41114302]
[1723744094400,0.084186,59383.0,59382.0,0.41114302]
[1723744095802,0.085186,59383.0,59382.0,0.41114302]
[1723744096592,0.087186,59383.0,59382.0,0.41114302]
[1723744096997,0.003,59383.0,59382.0,0.444988]
[1723744097305,0.004,59383.0,59382.0,0.444988]
[1723744097797,0.005,59383.0,59382.0,0.444988]
[1723744097992,0.005,59383.0,59382.0,0.5121055]
[1723744098192,0.005,59383.0,59382.0,0.444988]
[1723744098504,0.088186,59383.0,59382.0,0.5191055]
[1723744098903,0.00778214,59388.0,59381.0,0.00025254]
[1723744098904,0.084188,59382.0,59381.0,0.00025254]
[1723744099199,0.310976,59382.0,59381.0,0.05060588]
[1723744099405,0.310976,59382.0,59381.0,0.00025254]
[1723744099594,0.816176,59382.0,59381.0,0.00025254]
[1723744099792,0.826176,59382.0,59381.0,0.00025254]
[1723744100003,0.816176,59382.0,59381.0,0.00025254]
[1723744100399,1.216176,59382.0,59381.0,0.00025254]
[1723744100698,0.232788,59382.0,59381.0,0.00025254]
[1723744101303,0.237788,59382.0,59381.0,0.00125254]
[1723744102588,0.167988,59382.0,59381.0,0.00125254]
[1723744103400,0.095188,59382.0,59381.0,0.00125254]
[1723744103600,0.011,59382.0,59381.0,0.08544154]
[1723744103796,0.011,59382.0,59381.0,0.09307449]
[1723744103991,0.0075298,59388.0,59387.0,0.084181]
[1723744104196,0.155376,59391.0,59387.0,0.0503853]
[1723744104197,0.084176,59391.0,59387.0,0.0503853]
[1723744104403,0.084176,59391.0,59389.0,0.084176]
[1723744104702,0.0918559,59391.0,59389.0,0.084176]
[1723744104905,0.084176,59390.0,59389.0,0.084176]
[1723744105496,0.084178,59389.0,59388.0,0.0503853]
[1723744105697,0.084179,59388.0,59387.0,0.0513853]
[1723744105905,0.155679,59388.0,59387.0,0.001]
[1723744106301,0.249858,59388.0,59387.0,0.001]
[1723744106708,1.599997,59388.0,59387.0,0.001]
[1723744107010,1.599997,59388.0,59381.0,0.00025254]
[1723744107011,0.084188,59382.0,59381.0,0.00025254]
[1723744108600,0.088188,59382.0,59381.0,0.00025254]
[1723744110102,0.093188,59382.0,59381.0,0.00125254]
[1723744110307,0.093188,59382.0,59381.0,0.08544154]
[1723744110308,0.005,59382.0,59381.0,0.08544154]
[1723744110501,0.007,59382.0,59381.0,0.08544154]
[1723744111106,0.005,59382.0,59381.0,0.08544154]
[1723744111810,0.005,59382.0,59381.0,0.08644154]
[1723744112502,0.084177,59390.0,59389.0,0.084178]
[1723744114499,0.092177,59390.0,59389.0,0.085178]
[1723744115215,0.101177,59390.0,59389.0,0.086178]
[1723744118104,0.501177,59390.0,59389.0,0.086178]
[1723744119212,0.417,59390.0,59389.0,0.086178]
[1723744121001,0.6602247,59390.0,59389.0,0.086178]
[1723744121200,0.45821306,59390.0,59389.0,0.086178]
[1723744122012,0.54238906,59390.0,59389.0,0.086178]
[1723744125615,0.54238906,59390.0,59389.0,0.002]
[1723744126015,0.71074106,59390.0,59389.0,0.002]
[1723744126320,0.7823991,59390.0,59389.0,0.002]
[1723744126812,0.91275297,59390.0,59389.0,0.002]
[1723744128019,0.97275297,59390.0,59389.0,0.002]
[1723744129116,0.87988187,59390.0,59389.0,0.05244433]
[1723744129307,0.669528,59390.0,59389.0,0.05244433]
[1723744130524,0.669528,59390.0,59389.0,0.002]
[1723744135821,0.501176,59390.0,59389.0,0.002]
[1723744137807,0.501176,59390.0,59389.0,0.086178]
[1723744138012,0.417,59390.0,59389.0,0.086178]
[1723744138211,0.417,59390.0,59389.0,0.74357736]
[1723744138519,0.417,59390.0,59389.0,1.64869736]
[1723744138520,0.04379733,59390.0,59389.0,1.64869736]
[1723744139021,0.04379733,59390.0,59389.0,1.80476291]
[1723744139412,0.04379733,59390.0,59389.0,1.64868454]
[1723744139819,0.04379733,59390.0,59389.0,1.80476216]
[1723744140120,0.00025254,59392.0,59391.0,0.084175]
[1723744140314,0.00025254,59392.0,59391.0,0.36847463]
[1723744140513,0.00025254,59392.0,59391.0,0.21240554]
[1723744140723,0.00025254,59392.0,59391.0,0.36847511]
[1723744140919,0.00025254,59392.0,59391.0,0.21240554]
[1723744141217,0.00025254,59392.0,59391.0,0.084175]
[1723744141422,0.00125254,59392.0,59391.0,0.21239831]
[1723744141615,0.00325254,59392.0,59391.0,0.21239831]
[1723744142413,0.00325254,59392.0,59391.0,0.31321345]
[1723744142818,0.00325254,59392.0,59391.0,0.39738845]
[1723744143416,0.00325254,59392.0,59391.0,0.29657331]
[1723744144427,0.00325254,59392.0,59391.0,0.16835]
[1723744145628,0.00325254,59392.0,59391.0,1.157645]
[1723744145823,0.11724018,59400.0,59399.0,0.084164]
[1723744146029,0.11724018,59400.0,59399.0,0.444964]
[1723744146431,0.20140118,59401.0,59400.0,0.084162]
[1723744147826,0.21240118,59401.0,59400.0,0.085162]
[1723744148031,0.095161,59401.0,59400.0,0.085162]
[1723744148622,0.13636097,59401.0,59400.0,0.085162]
[1723744149222,0.05419997,59401.0,59400.0,0.086162]
[1723744149432,0.013,59401.0,59400.0,0.344924]
[1723744149624,0.13006574,59401.0,59400.0,0.419524]
[1723744149934,0.013,59401.0,59400.0,0.335362]
[1723744150325,0.13006652,59401.0,59400.0,0.335362]
[1723744151423,0.084155,59405.0,59404.0,0.084156]
[1723744151727,0.084155,59405.0,59404.0,0.444956]
[1723744153326,0.084155,59405.0,59404.0,0.445956]
[1723744154442,0.085155,59405.0,59404.0,0.446956]
[1723744157637,0.16931,59405.0,59404.0,0.002]
[1723744157935,0.084164,59399.0,59398.0,0.3608]
[1723744158141,0.084164,59399.0,59395.0,0.00025254]
[1723744158142,0.084165,59398.0,59395.0,0.00025254]
[1723744158338,0.748145,59398.0,59395.0,0.00025254]
[1723744158534,0.50508,59397.0,59395.0,0.00025254]
[1723744158733,0.529136,59396.0,59395.0,0.00025254]
[1723744158934,1.034216,59396.0,59395.0,0.00025254]
[1723744159637,1.034216,59396.0,59383.0,0.05030218]
[1723744159638,0.08419,59380.0,59379.0,0.41110218]
[1723744159836,0.08419,59380.0,59379.0,0.3608]
[1723744161139,0.08419,59380.0,59379.0,0.3738]
[1723744161650,0.09040442,59380.0,59379.0,0.3738]
[1723744161936,0.09040442,59380.0,59379.0,0.026]
[1723744162539,0.09040442,59380.0,59379.0,0.018]
[1723744162733,0.09040442,59380.0,59379.0,0.01]
[1723744163041,0.17459442,59380.0,59379.0,0.01]
[1723744163231,0.25878442,59380.0,59379.0,0.01]
[1723744163428,0.67983442,59380.0,59379.0,0.01]
[1723744164135,1.07983442,59380.0,59379.0,0.01]
[1723744165733,1.08983442,59380.0,59379.0,0.01]
[1723744165932,1.07983442,59380.0,59379.0,0.01]
[1723744167935,1.08983442,59380.0,59379.0,0.01]
[1723744168736,0.168396,59375.0,59374.0,0.00025254]
[1723744169043,0.168396,59375.0,59365.0,0.3608]
[1723744169044,0.084209,59368.0,59361.0,0.084217]
[1723744169236,0.1444,59367.0,59359.0,0.3608]
[1723744169439,0.084219,59360.0,59359.0,0.3608]
[1723744169738,0.084219,59360.0,59359.0,0.36705408]
[1723744169946,0.084219,59360.0,59353.0,0.084229]
[1723744169947,0.3608,59360.0,59353.0,0.084229]
[1723744170245,0.084227,59354.0,59353.0,0.084229]
[1723744171546,0.00025254,59365.0,59353.0,0.3608]
[1723744171846,0.084218,59361.0,59360.0,0.084217]
[1723744173050,0.084218,59361.0,59360.0,0.097217]
[1723744173051,0.085218,59361.0,59360.0,0.097217]
[1723744173249,0.086218,59361.0,59360.0,0.110217]
[1723744175444,0.531236,59361.0,59360.0,0.026]
[1723744178349,0.170436,59361.0,59360.0,0.026]
[1723744181556,0.200436,59361.0,59360.0,0.026]
[1723744183750,0.284654,59361.0,59360.0,0.026]
[1723744183951,0.08423,59352.0,59351.0,0.0745]
[1723744185147,0.084232,59351.0,59350.0,0.00676589]
[1723744185347,0.084232,59351.0,59348.0,0.36105254]
[1723744185348,0.08523,59352.0,59351.0,0.014]
[1723744186057,0.16946,59352.0,59351.0,0.014]
[1723744186263,0.084234,59349.0,59348.0,0.00025254]
[1723744186559,0.084234,59349.0,59348.0,0.00674775]
[1723744186762,0.084234,59349.0,59348.0,0.00025254]
[1723744188152,0.084234,59349.0,59348.0,0.00679169]
[1723744188458,0.085234,59349.0,59348.0,0.00025254]
[1723744189257,0.086234,59349.0,59348.0,0.01125254]
[1723744190363,0.086234,59349.0,59348.0,0.08744127]
[1723744191460,0.002,59349.0,59348.0,0.11122761]
[1723744193351,0.002,59349.0,59348.0,0.55601352]
[1723744193853,0.002,59349.0,59348.0,0.60034769]
[1723744194254,0.084233,59350.0,59349.0,0.084234]
[1723744194456,0.084228,59355.0,59354.0,0.084226]
[1723744194657,0.084228,59355.0,59354.0,0.445026]
[1723744195254,0.084228,59355.0,59354.0,0.517626]
[1723744195451,0.084218,59361.0,59354.0,0.517626]
[1723744195452,0.084218,59361.0,59354.0,1.06715263]
[1723744195656,0.084218,59361.0,59360.0,0.15141526]
[1723744196061,0.084218,59361.0,59360.0,0.084219]
[1723744196463,0.04209449,59361.0,59360.0,0.084219]
[1723744197169,0.084219,59360.0,59359.0,0.3608]
[1723744197369,0.084219,59360.0,59359.0,0.57310367]
[1723744198059,0.084219,59360.0,59359.0,0.3608]
[1723744198368,0.168438,59360.0,59359.0,0.3608]
[1723744198774,0.169438,59360.0,59359.0,0.3698]
[1723744199273,0.190438,59360.0,59359.0,0.3788]
[1723744199567,0.170438,59360.0,59359.0,0.3788]
[1723744200759,0.459257,59360.0,59359.0,0.08527825]
[1723744200961,0.820057,59360.0,59359.0,0.018]
[1723744201170,0.790057,59360.0,59359.0,0.018]
[1723744201670,0.439257,59360.0,59359.0,0.0684611]
[1723744201865,0.790057,59360.0,59359.0,0.018]
[1723744202067,0.615457,59360.0,59359.0,0.018]
[1723744202764,0.170438,59360.0,59359.0,0.0684611]
[1723744202965,0.170438,59360.0,59359.0,0.06845931]
[1723744203160,0.170438,59360.0,59359.0,0.018]
[1723744204868,0.190438,59360.0,59359.0,0.018]
[1723744205467,0.086219,59360.0,59359.0,0.018]
[1723744205775,0.170438,59360.0,59359.0,0.018]
[1723744205974,0.531238,59360.0,59359.0,0.018]
[1723744206185,0.625457,59360.0,59359.0,0.00606442]
[1723744206571,0.16845,59356.0,59355.0,0.05047176]
[1723744206874,0.168452,59355.0,59354.0,0.05047176]
[1723744207065,0.257952,59355.0,59354.0,0.05047176]
[1723744207571,0.168454,59354.0,59353.0,0.05047176]
[1723744207973,0.178454,59354.0,59353.0,0.05047176]
[1723744208272,0.262681,59354.0,59353.0,0.05047176]
[1723744208468,0.262681,59354.0,59348.0,0.00025254]
[1723744208469,0.168468,59349.0,59348.0,0.00025254]
[1723744208665,0.613502,59349.0,59348.0,0.00025254]
[1723744208864,0.633502,59349.0,59348.0,0.00025254]
[1723744209175,0.601268,59349.0,59348.0,0.00025254]
[1723744209482,0.611268,59349.0,59348.0,0.00025254]
[1723744209784,0.601268,59349.0,59348.0,0.00025254]
[1723744209972,0.601268,59349.0,59348.0,0.05071316]
[1723744209973,0.602268,59349.0,59348.0,0.05071316]
[1723744210479,0.602268,59349.0,59348.0,0.00025254]
[1723744210680,0.603268,59349.0,59348.0,0.00025254]
[1723744211066,0.519034,59349.0,59348.0,0.00025254]
[1723744211376,0.45381044,59349.0,59348.0,0.00025254]
[1723744211569,0.53804444,59349.0,59348.0,0.00025254]
[1723744212779,0.54804444,59349.0,59348.0,0.00025254]
[1723744212968,0.53804444,59349.0,59348.0,0.00025254]
[1723744213969,0.55804444,59349.0,59348.0,0.00025254]
[1723744216272,0.168484,59344.0,59343.0,0.00012859]
[1723744216471,0.613526,59344.0,59343.0,0.00012859]
[1723744216673,0.613526,59344.0,59339.0,0.05046062]
[1723744216674,0.258847,59340.0,59332.0,0.05046062]
[1723744216871,0.3608,59333.0,59332.0,0.05046062]
[1723744217075,0.445057,59333.0,59330.0,0.05046062]
[1723744217383,0.084263,59330.0,59328.0,0.05046062]
[1723744217586,0.00012859,59329.0,59328.0,0.05046062]
[1723744217777,0.08439159,59329.0,59328.0,0.05046062]
[1723744218084,0.08439159,59329.0,59324.0,0.05039731]
[1723744218085,1.39768139,59329.0,59324.0,0.05039731]
[1723744218279,0.3608,59325.0,59312.0,0.06727825]
[1723744218480,0.3608,59313.0,59311.0,0.05040481]
[1723744218684,0.36091825,59312.0,59308.0,0.0684]
[1723744218981,0.084291,59309.0,59308.0,0.0684]
[1723744219187,0.084293,59308.0,59307.0,0.05040481]
[1723744219377,0.36091825,59312.0,59307.0,0.05033944]
[1723744219578,0.084296,59306.0,59304.0,0.05033944]
[1723744219883,0.084296,59306.0,59304.0,0.05707336]
[1723744220088,0.084296,59306.0,59305.0,0.50584]
[1723744220293,0.084301,59302.0,59301.0,0.05033944]
[1723744220479,0.084303,59301.0,59300.0,0.3608]
[1723744221386,0.084303,59301.0,59298.0,0.00654685]
[1723744221387,0.08431,59296.0,59295.0,0.00013317]
[1723744221579,0.08443859,59296.0,59295.0,0.00013317]
[1723744222180,0.00012859,59296.0,59295.0,0.08444417]
[1723744222375,0.00012859,59296.0,59295.0,0.08744417]
[1723744222579,0.00112859,59296.0,59295.0,0.00313317]
[1723744223273,0.08643859,59296.0,59295.0,0.00413317]
[1723744223683,0.00212859,59296.0,59295.0,0.00413317]
[1723744223884,0.00112859,59296.0,59295.0,0.00113317]
[1723744224086,0.00212859,59296.0,59295.0,0.99440417]
[1723744224286,0.00025276,59301.0,59295.0,0.91009317]
[1723744224484,0.00025276,59301.0,59300.0,0.445104]
[1723744224984,0.00025276,59301.0,59300.0,1.350984]
[1723744225580,0.00125276,59301.0,59300.0,1.350984]
[1723744225881,0.084286,59313.0,59307.0,0.084294]
[1723744226086,0.084288,59312.0,59307.0,0.445094]
[1723744226274,0.084291,59309.0,59307.0,0.3608]
[1723744226694,0.084291,59309.0,59300.0,0.36940125]
[1723744226695,0.084303,59301.0,59300.0,0.002]
[1723744227375,0.168606,59301.0,59300.0,0.002]
[1723744227685,0.08431,59296.0,59295.0,0.00038593]
[1723744228883,0.08531,59296.0,59295.0,0.00538593]
[1723744229789,0.002,59296.0,59295.0,0.00738593]
[1723744229988,0.002,59296.0,59295.0,0.09169693]
[1723744230177,0.08631,59296.0,59295.0,0.00738593]
[1723744233187,0.26091,59296.0,59295.0,0.00738593]
[1723744234088,0.28399617,59296.0,59277.0,0.084337]
[1723744234387,0.28399617,59296.0,59276.0,0.0684]
[1723744234388,0.3608,59281.0,59276.0,0.0684]
[1723744234575,0.08433,59282.0,59276.0,0.0684]
[1723744234978,0.00013317,59281.0,59276.0,0.0684]
[1723744235288,0.00013317,59281.0,59280.0,0.449132]
[1723744235492,0.00013317,59281.0,59280.0,0.955212]
[1723744235792,0.00013317,59281.0,59280.0,1.356212]
[1723744235985,0.00025298,59284.0,59280.0,1.356212]
[1723744236187,0.00025298,59284.0,59283.0,0.084328]
[1723744236585,0.00025298,59284.0,59283.0,0.990368]
[1723744237292,0.00125298,59284.0,59283.0,0.990368]
[1723744237477,0.084314,59293.0,59283.0,0.90604]
[1723744237790,0.084316,59292.0,59290.0,0.084318]
[1723744238683,0.084317,59291.0,59289.0,0.0716]
[1723744238884,0.084318,59290.0,59289.0,0.0716]
[1723744239785,0.53565298,59297.0,59288.0,0.3608]
[1723744239786,0.08432,59289.0,59288.0,0.3608]
[1723744239987,0.084324,59286.0,59285.0,0.00025298]
[1723744240380,0.08432,59289.0,59285.0,0.00025298]
[1723744240587,0.08432,59289.0,59285.0,0.08457698]
[1723744241186,0.08432,59289.0,59286.0,0.084323]
[1723744241383,0.04214447,59289.0,59286.0,0.084323]
[1723744241597,0.04214447,59289.0,59287.0,0.445122]
[1723744241893,0.001,59290.0,59287.0,0.445122]
[1723744241894,0.084321,59288.0,59287.0,0.445122]
[1723744243595,0.085321,59288.0,59287.0,0.3618]
[1723744244392,0.085321,59288.0,59287.0,0.446123]
[1723744244393,0.002,59288.0,59287.0,0.446123]
[1723744245397,0.002,59288.0,59287.0,0.4961975]
[1723744245593,0.5354,59298.0,59287.0,0.4961975]
[1723744245594,0.084311,59296.0,59287.0,0.3618]
[1723744245783,0.084311,59296.0,59294.0,0.3608]
[1723744246083,0.084304,59300.0,59296.0,0.08431]
[1723744246290,0.084304,59300.0,59296.0,0.13458654]
[1723744246489,0.084308,59298.0,59296.0,0.08431]
[1723744246894,0.36789525,59305.0,59296.0,0.08431]
[1723744247398,0.08556098,59297.0,59296.0,0.001]
[1723744247598,0.08556098,59297.0,59296.0,0.08531]
[1723744247987,0.08556098,59297.0,59296.0,0.001]
[1723744248494,0.08556098,59297.0,59296.0,0.0844575]
[1723744249601,0.00225298,59297.0,59296.0,0.29922182]
[1723744249800,0.00225298,59297.0,59296.0,0.21576432]
[1723744252399,0.00225298,59297.0,59296.0,0.13145432]
[1723744252704,0.08656098,59297.0,59296.0,0.003]
[1723744253700,0.08656098,59297.0,59296.0,0.0871007]
[1723744254013,0.08656098,59297.0,59296.0,0.003]
[1723744254206,0.08656098,59297.0,59296.0,0.21555509]
[1723744254500,0.08656098,59297.0,59296.0,0.13145379]
[1723744255700,0.08656098,59297.0,59296.0,0.13144999]
[1723744256003,0.00225298,59297.0,59296.0,0.21575999]
[1723744256203,0.08656098,59297.0,59296.0,0.13144999]
[1723744257207,0.08431,59296.0,59294.0,0.06733891]
[1723744257405,0.168622,59295.0,59294.0,0.06733891]
[1723744257716,0.2135,59296.0,59293.0,0.06733891]
[1723744257717,0.084313,59294.0,59293.0,0.06733891]
[1723744258001,0.2135,59296.0,59290.0,0.16848465]
[1723744258002,0.084315,59293.0,59290.0,0.16848465]
[1723744258300,0.084315,59293.0,59291.0,0.08416665]
[1723744258508,0.084315,59293.0,59290.0,0.16848465]
[1723744259008,0.001,59295.0,59290.0,0.08416665]
[1723744259313,0.00025298,59297.0,59290.0,0.08416665]
[1723744259314,0.001,59296.0,59295.0,0.084311]
[1723744259606,0.001,59296.0,59295.0,0.21277025]
[1723744260004,0.00025298,59297.0,59296.0,0.08431]
[1723744260205,0.00025298,59297.0,59296.0,0.2969304]
[1723744260504,0.00025298,59297.0,59296.0,0.21276925]
[1723744260693,0.08456098,59297.0,59296.0,0.21276925]
[1723744261108,0.08456098,59297.0,59296.0,0.21275798]
[1723744261612,0.08456098,59297.0,59296.0,0.29691524]
[1723744261800,0.00025298,59297.0,59296.0,0.29691524]
[1723744262000,0.00025298,59297.0,59296.0,0.21275798]
[1723744262200,0.00025298,59297.0,59296.0,0.21375798]
[1723744262911,0.00025298,59297.0,59296.0,0.29791079]
[1723744263101,0.08456098,59297.0,59296.0,0.001]
[1723744263300,0.34346898,59297.0,59296.0,0.001]
[1723744263604,0.34346898,59297.0,59296.0,0.06832442]
[1723744264696,0.34346898,59297.0,59296.0,0.001]
[1723744265097,0.35057016,59297.0,59296.0,0.001]
[1723744265899,0.71137016,59297.0,59296.0,0.001]
[1723744266106,0.62706216,59297.0,59296.0,0.001]
[1723744266298,0.09166216,59297.0,59296.0,0.001]
[1723744266612,0.08456098,59297.0,59296.0,0.06832442]
[1723744267207,0.34346898,59297.0,59296.0,0.001]
[1723744267412,0.25916098,59297.0,59296.0,0.05151413]
[1723744267706,0.25916098,59297.0,59285.0,0.06760732]
[1723744267707,0.084318,59290.0,59285.0,0.06760732]
[1723744267915,0.084318,59290.0,59281.0,0.1178901]
[1723744267916,0.5354,59286.0,59281.0,0.1178901]
[1723744268101,0.5354,59286.0,59280.0,0.0505253]
[1723744268102,0.5454,59286.0,59280.0,0.0505253]
[1723744268304,0.258932,59281.0,59278.0,0.0505253]
[1723744268506,0.1746,59279.0,59276.0,0.0505253]
[1723744268812,0.1746,59279.0,59275.0,0.0505253]
[1723744268813,0.084338,59276.0,59275.0,0.0505253]
[1723744269003,0.258938,59276.0,59275.0,0.0505253]
[1723744269209,0.258938,59276.0,59273.0,0.06737024]
[1723744269507,0.258938,59276.0,59263.0,0.3618]
[1723744269508,0.258938,59276.0,59275.0,0.05049194]
[1723744269703,0.3608,59276.0,59272.0,0.06737024]
[1723744269904,0.3608,59276.0,59273.0,0.06737024]
[1723744270107,0.3608,59276.0,59275.0,0.05046605]
[1723744270504,0.3618,59276.0,59275.0,0.05046605]
[1723744270705,0.001,59276.0,59275.0,0.3608]
[1723744271111,0.001,59279.0,59278.0,0.084335]
[1723744271707,0.00025298,59283.0,59278.0,0.084335]
[1723744271915,0.3608,59281.0,59275.0,0.3608]
[1723744272108,0.084335,59279.0,59275.0,0.3608]
[1723744272307,0.001,59276.0,59275.0,0.3608]
[1723744272703,0.001,59279.0,59275.0,0.3608]
[1723744272901,0.084337,59277.0,59275.0,0.3608]
[1723744273319,0.001,59279.0,59275.0,0.3608]
[1723744273613,0.001,59279.0,59278.0,0.084335]
[1723744274810,0.084338,59276.0,59275.0,0.3608]
[1723744275109,0.084338,59276.0,59275.0,0.3628]
[1723744275711,0.084338,59276.0,59275.0,0.3608]
[1723744276012,0.085338,59276.0,59275.0,0.3608]
[1723744276517,0.086338,59276.0,59275.0,0.3628]
[1723744277619,0.260938,59276.0,59275.0,0.3628]
[1723744278814,0.260938,59276.0,59275.0,0.41325526]
[1723744279320,0.260938,59276.0,59275.0,0.3628]
[1723744281106,0.086338,59276.0,59275.0,0.3628]
[1723744282317,0.096338,59276.0,59275.0,0.3628]
[1723744282712,0.270938,59276.0,59275.0,0.3628]
[1723744283122,0.621738,59276.0,59275.0,0.002]
[1723744283517,0.260938,59276.0,59275.0,0.002]
[1723744284220,0.621738,59276.0,59275.0,0.002]
[1723744284714,0.084348,59269.0,59268.0,0.05045526]
[1723744284918,0.258948,59269.0,59268.0,0.05045526]
[1723744285218,0.084362,59259.0,59258.0,0.001]
[1723744285423,0.1746,59259.0,59253.0,0.41207326]
[1723744285723,0.1746,59259.0,59248.0,0.0672731]
[1723744285724,0.084372,59253.0,59248.0,0.05039326]
[1723744285915,0.156864,59258.0,59248.0,0.05039326]
[1723744286221,0.258977,59249.0,59245.0,0.05054453]
[1723744286420,0.084381,59246.0,59245.0,0.00015127]
[1723744287321,0.1746,59249.0,59245.0,0.00015127]
[1723744287518,0.001,59253.0,59245.0,0.00015127]
[1723744287519,0.001,59253.0,59245.0,0.36095127]
[1723744288334,0.08438,59247.0,59245.0,0.36095127]
[1723744288519,0.084381,59246.0,59245.0,0.36095127]
[1723744288912,0.084388,59241.0,59240.0,0.3608]
[1723744289118,0.0421841,59241.0,59240.0,0.3608]
[1723744290019,0.00015127,59241.0,59240.0,0.3608]
[1723744290326,0.00125298,59246.0,59245.0,0.084382]
[1723744290519,0.00125298,59246.0,59245.0,0.445182]
[1723744291317,0.09145828,59262.0,59245.0,1.26716]
[1723744291520,0.084353,59266.0,59254.0,0.3608]
[1723744291719,0.3608,59267.0,59254.0,0.3608]
[1723744291925,0.3608,59267.0,59255.0,0.1497]
[1723744292323,0.084359,59262.0,59257.0,0.084365]
[1723744292630,0.3608,59267.0,59255.0,0.1497]
[1723744292631,0.1746,59263.0,59255.0,0.1497]
[1723744292826,0.1746,59263.0,59255.0,0.14995298]
[1723744293125,0.001,59266.0,59265.0,0.084354]
[1723744293329,0.00125298,59267.0,59266.0,0.084352]
[1723744293524,0.00225298,59267.0,59266.0,0.084352]
[1723744294124,0.00225298,59267.0,59266.0,0.590552]
[1723744294325,0.00225298,59267.0,59266.0,0.084352]
[1723744294930,0.17685298,59267.0,59257.0,0.3608]
[1723744295125,0.084364,59258.0,59257.0,0.3608]
[1723744296231,0.084359,59262.0,59260.0,0.08436]
[1723744297026,0.0739,59266.0,59261.0,0.084359]
[1723744297330,0.0739,59266.0,59264.0,0.084354]
[1723744297331,0.084352,59266.0,59264.0,0.084354]
[1723744297535,0.00125298,59267.0,59265.0,0.084354]